lending/lending_fUSD_20250819
["ID","MTS","AMOUNT","RATE_DAILY","PERIOD"]
[380279822,1755631426356,-400.0,0.00023547,30]
[380279823,1755631426432,-609.42,0.00023547,30]
[380279824,1755631426502,-1773.97,0.00023547,30]
[380279825,1755631426570,-1735.8,0.00023547,30]
[380279826,1755631426638,-1297.44,0.00023547,30]
[380279827,1755631426704,-1858.51,0.00023547,30]
[380279828,1755631426770,-805.88,0.00023547,30]
[380279829,1755631426837,-1244.43,0.00023547,30]
[380279830,1755631426904,-347.23599276,0.00023547,30]
[380279831,1755631426970,-1784.43,0.00023547,30]
[380279832,1755631427035,-501.46,0.00023547,30]
[380279833,1755631427103,-1529.76,0.00023547,30]
[380279834,1755631427171,-672.98,0.00023547,30]
[380279835,1755631427244,-600.82,0.00023547,30]
[380279836,1755631427322,-1465.85,0.00023547,30]
[380279837,1755631427397,-1931.93,0.00023547,30]
[380279838,1755631427467,-300.52,0.00023547,30]
[380279839,1755631427535,-2147.31,0.00023547,30]
[380279840,1755631427608,-2038.08,0.00023547,30]
[380279841,1755631427677,-1567.3,0.00023547,30]
[380279842,1755631427744,-1367.91,0.00023547,30]
[380279843,1755631427808,-400.0,0.00023547,30]
[380279844,1755631427875,-400.0,0.00023547,30]
[380279845,1755631427939,-400.0,0.00023547,30]
[380279846,1755631428006,-1620.7,0.00023547,30]
[380279847,1755631428076,-2163.3,0.00023547,30]
[380279848,1755631428147,-202.71248136,0.00023547,30]
[380279849,1755631428220,-400.0,0.00023547,30]
[380279850,1755631428294,-1692.55,0.00023547,30]
[380279851,1755631428376,-845.95,0.00023547,30]
[380279852,1755631428451,-400.0,0.00023547,30]
[380279853,1755631428521,-400.0,0.00023547,30]
[380279854,1755631428592,-400.0,0.00023547,30]
[380279855,1755631428662,-2121.39,0.00023547,30]
[380279856,1755631428733,-1740.78,0.00023547,30]
[380279857,1755631428805,-429.43,0.00023547,30]
[380279858,1755631428877,-1828.54,0.00023547,30]
[380279859,1755631428947,-2012.79,0.00023547,30]
[380279860,1755631429020,-708.39,0.00023547,30]
[380279861,1755631429091,-2499.8,0.00023547,30]
[380279862,1755631429166,-1426.86,0.00023547,30]
[380279863,1755631429242,-664.56,0.00023547,30]
[380279864,1755631429317,-400.0,0.00023547,30]
[380279865,1755631429393,-1463.09,0.00023547,30]
[380279866,1755631429468,-250.0,0.00023547,30]
[380279867,1755631429542,-1552.03,0.00023547,30]
[380279868,1755631429615,-1913.73,0.00023547,30]
[380279869,1755631429687,-400.0,0.00023547,30]
[380279870,1755631429761,-2436.61,0.00023547,30]
[380279871,1755631429837,-1392.77,0.00023547,30]
[380279872,1755631429908,-846.92,0.00023547,30]
[380279873,1755631429980,-1000.0,0.00023547,30]
[380279874,1755631430056,-1763.74,0.00023547,30]
[380279875,1755631430130,-400.0,0.00023547,30]
[380279876,1755631430206,-400.0,0.00023547,30]
[380279877,1755631430280,-1099.58,0.00023547,30]
[380279878,1755631430356,-744.5,0.00023547,30]
[380279879,1755631430432,-665.76,0.00023547,30]
[380279880,1755631430508,-400.0,0.00023547,30]
[380279881,1755631430582,-400.0,0.00023547,30]
[380279882,1755631430658,-400.0,0.00023547,30]
[380279883,1755631430734,-1281.3,0.00023547,30]
[380279884,1755631430810,-1252.4,0.00023547,30]
[380279885,1755631430884,-400.0,0.00023547,30]
[380279886,1755631430960,-3616.11,0.00023547,30]
[380279887,1755631431034,-407.83,0.00023547,30]
[380279888,1755631431112,-1482.09,0.00023547,30]
[380279889,1755631431194,-1414.83,0.00023547,30]
[380279890,1755631431270,-2032.19,0.00023547,30]
[380279891,1755631431360,-400.0,0.00023547,30]
[380279892,1755631431440,-1578.98,0.00023547,30]
[380279893,1755631431514,-2398.45,0.00023547,30]
[380279894,1755631431592,-766.85,0.00023547,30]
[380279895,1755631431666,-1851.5,0.00023547,30]
[380279896,1755631431738,-1329.85,0.00023547,30]
[380279897,1755631431812,-400.0,0.00023547,30]
[380279898,1755631431887,-1371.61,0.00023547,30]
[380279899,1755631431961,-1402.72,0.00023547,30]
[380279900,1755631432033,-400.0,0.00023547,30]
[380279901,1755631432106,-589.37,0.00023547,30]
[380279902,1755631432181,-1582.32,0.00023547,30]
[380279903,1755631432258,-1558.06,0.00023547,30]
[380279904,1755631432334,-901.56,0.00023547,30]
[380279905,1755631432410,-1663.17,0.00023547,30]
[380279906,1755631432483,-400.0,0.00023547,30]
[380279907,1755631432557,-1613.79,0.00023547,30]
[380279908,1755631432632,-1045.63,0.00023547,30]
[380279909,1755631432704,-749.46,0.00023547,30]
[380279910,1755631432776,-1627.15,0.00023547,30]
[380279911,1755631432846,-400.0,0.00023547,30]
[380279912,1755631432918,-609.27,0.00023547,30]
[380279913,1755631432985,-435.18,0.00023547,30]
[380279914,1755631433053,-400.0,0.00023547,30]
[380279915,1755631433125,-4412.02,0.00023547,30]
[380279916,1755631433196,-271.30376477,0.00023547,30]
[380279917,1755631433268,-2089.62,0.00023547,30]
[380279918,1755631433341,-1260.34,0.00023547,30]
[380279919,1755631433415,-1502.06,0.00023547,30]
[380279920,1755631433488,-563.93,0.00023547,30]
[380279921,1755631433562,-6403.8,0.00023547,30]
[380279922,1755631433635,-400.0,0.00023547,30]
[380279923,1755631433707,-1985.34,0.00023547,30]
[380279924,1755631433778,-1048.51,0.00023547,30]
[380279925,1755631433853,-400.0,0.00023547,30]
[380279926,1755631433929,-400.0,0.00023547,30]
[380279927,1755631433998,-1399.36,0.00023547,30]
[380279928,1755631434071,-400.0,0.00023547,30]
[380279929,1755631434412,-400.0,0.00023547,30]
[380279930,1755631434517,-400.0,0.00023547,30]
[380279931,1755631434589,-400.0,0.00023547,30]
[380279932,1755631434663,-1781.2,0.00023547,30]
[380279933,1755631434740,-705.16,0.00023547,30]
[380279934,1755631434814,-1262.42,0.00023547,30]
[380279935,1755631434887,-1740.19,0.00023547,30]
[380279936,1755631434963,-681.02,0.00023547,30]
[380279937,1755631435039,-847.25,0.00023547,30]
[380279938,1755631435121,-1383.16,0.00023547,30]
[380279939,1755631435198,-2644.58,0.00023547,30]
[380279940,1755631435276,-400.0,0.00023547,30]
[380279941,1755631435355,-1521.72,0.00023547,30]
[380279942,1755631435436,-408.62,0.00023547,30]
[380279943,1755631435512,-1779.17,0.00023547,30]
[380279944,1755631435589,-2168.42,0.00023547,30]
[380279945,1755631435665,-400.0,0.00023547,30]
[380279946,1755631435744,-1178.75,0.00023547,30]
[380279947,1755631435818,-1810.97,0.00023547,30]
[380279948,1755631435893,-400.0,0.00023547,30]
[380279949,1755631435970,-616.31,0.00023547,30]
[380279950,1755631436044,-437.3,0.00023547,30]
[380279951,1755631436119,-400.0,0.00023547,30]
[380279952,1755631436195,-1301.26,0.00023547,30]
[380279953,1755631436270,-400.0,0.00023547,30]
[380279954,1755631436346,-1396.52,0.00023547,30]
[380279955,1755631436424,-3238.02,0.00023547,30]
[380279956,1755631436497,-1029.85,0.00023547,30]
[380279957,1755631436572,-661.58,0.00023547,30]
[380279958,1755631436650,-900.37,0.00023547,30]
[380279959,1755631436722,-524.58,0.00023547,30]
[380279960,1755631436792,-527.9718559,0.00023547,30]
[380279961,1755631436861,-1367.19,0.00023547,30]
[380279962,1755631436933,-528.92,0.00023547,30]
[380279963,1755631437000,-400.0,0.00023547,30]
[380279964,1755631437069,-1736.94,0.00023547,30]
[380279965,1755631437140,-1444.28,0.00023547,30]
[380279966,1755631437215,-438.54,0.00023547,30]
[380279967,1755631437291,-2052.18,0.00023547,30]
[380279968,1755631437368,-1214.14,0.00023547,30]
[380279969,1755631437445,-1257.53,0.00023547,30]
[380279970,1755631437518,-400.0,0.00023547,30]
[380279971,1755631437590,-400.0,0.00023547,30]
[380279972,1755631437666,-400.0,0.00023547,30]
[380279973,1755631437740,-809.42,0.00023547,30]
[380279974,1755631437813,-1942.42,0.00023547,30]
[380279975,1755631437893,-617.46,0.00023547,30]
[380279976,1755631437967,-1699.43,0.00023547,30]
[380279977,1755631438038,-1369.92,0.00023547,30]
[380279978,1755631438116,-400.0,0.00023547,30]
[380279979,1755631438194,-1393.2,0.00023547,30]
[380279980,1755631438270,-2169.5,0.00023547,30]
[380279981,1755631438346,-823.8,0.00023547,30]
[380279982,1755631438422,-400.0,0.00023547,30]
[380279983,1755631438497,-400.0,0.00023547,30]
[380279984,1755631438573,-400.0,0.00023547,30]
[380279985,1755631438646,-1784.2,0.00023547,30]
[380279986,1755631438719,-550.99,0.00023547,30]
[380279987,1755631438791,-1565.79,0.00023547,30]
[380279988,1755631438861,-1416.58,0.00023547,30]
[380279989,1755631438932,-1403.3,0.00023547,30]
[380279990,1755631439004,-642.58,0.00023547,30]
[380279991,1755631439075,-2128.32,0.00023547,30]
[380279992,1755631439149,-7432.2,0.00023547,30]
[380279993,1755631439224,-1992.46,0.00023547,30]
[380279994,1755631439297,-776.51,0.00023547,30]
[380279995,1755631439372,-400.0,0.00023547,30]
[380279996,1755631439447,-646.11,0.00023547,30]
[380279997,1755631439520,-942.07,0.00023547,30]
[380279998,1755631439594,-1398.76,0.00023547,30]
[380279999,1755631439667,-1374.85,0.00023547,30]
[380280000,1755631439745,-622.04,0.00023547,30]
[380280001,1755631439817,-1438.62,0.00023547,30]
[380280002,1755631439888,-400.0,0.00023547,30]
[380280003,1755631439958,-400.0,0.00023547,30]
[380280004,1755631440030,-400.0,0.00023547,30]
[380280005,1755631440108,-436.45,0.00023547,30]
[380280006,1755631440188,-1464.38,0.00023547,30]
[380280007,1755631440269,-1258.08,0.00023547,30]
[380280008,1755631440348,-1569.5,0.00023821,30]
[380280009,1755631440431,-2257.43,0.00023821,30]
[380280010,1755631440509,-400.0,0.00023821,30]
[380280011,1755631440586,-400.0,0.00023821,30]
[380280012,1755631440662,-400.0,0.00023821,30]
[380280013,1755631440736,-1571.79,0.00023821,30]
[380280014,1755631440809,-400.0,0.00023821,30]
[380280015,1755631440885,-400.0,0.00023821,30]
[380280016,1755631440959,-1522.01,0.00023821,30]
[380280017,1755631441033,-1158.37,0.00023821,30]
[380280018,1755631441110,-584.13,0.00023821,30]
[380280019,1755631441193,-957.91,0.00023821,30]
[380280020,1755631441274,-2491.69,0.00023821,30]
[380280021,1755631441349,-400.0,0.00023821,30]
[380280022,1755631441427,-2492.12,0.00023821,30]
[380280023,1755631441501,-1980.77,0.00023821,30]
[380280024,1755631441576,-400.0,0.00023821,30]
[380280025,1755631441652,-173.5444066,0.00023821,30]
[380280026,1755631441734,-1928.22,0.00023821,30]
[380280027,1755631441826,-553.68,0.00023821,30]
[380280028,1755631441899,-400.0,0.00023821,30]
[380280029,1755631441969,-2354.42,0.00023821,30]
[380280030,1755631442040,-1644.87,0.00023821,30]
[380280031,1755631442113,-2216.05,0.00023821,30]
[380280032,1755631442188,-2825.62,0.00023821,30]
[380280033,1755631442261,-619.98,0.00023821,30]
[380280034,1755631442340,-651.62,0.00023821,30]
[380280035,1755631442413,-3485.03,0.00023821,30]
[380280036,1755631442484,-1412.21,0.00023821,30]
[380280037,1755631442555,-1725.57,0.00023821,30]
[380280038,1755631442627,-400.0,0.00023821,30]
[380280039,1755631442699,-2140.32,0.00023821,30]
[380280040,1755631442771,-433.66,0.00023821,30]
[380280041,1755631442841,-2069.46,0.00023821,30]
[380280042,1755631442912,-400.0,0.00023821,30]
[380280043,1755631442985,-400.0,0.00023821,30]
[380280044,1755631443286,-400.0,0.00023821,30]
[380280045,1755631443368,-400.0,0.00023821,30]
[380280046,1755631443447,-1586.23,0.00023821,30]
[380280047,1755631443525,-2222.5,0.00023821,30]
[380280048,1755631443603,-400.0,0.00023821,30]
[380280049,1755631443679,-2119.53,0.00023821,30]
[380280050,1755631443754,-400.0,0.00023821,30]
[380280051,1755631443826,-868.92,0.00023821,30]
[380280052,1755631443899,-547.34,0.00023821,30]
[380280053,1755631443973,-1030.88,0.00023821,30]
[380280054,1755631444048,-1811.4,0.00023821,30]
[380280055,1755631444124,-400.0,0.00023821,30]
[380280056,1755631444200,-1086.92,0.00023821,30]
[380280057,1755631444275,-400.0,0.00023821,30]
[380280058,1755631444351,-400.0,0.00023821,30]
[380280059,1755631444427,-400.0,0.00023821,30]
[380280060,1755631444502,-400.0,0.00023821,30]
[380280061,1755631444576,-451.11,0.00023821,30]
[380280062,1755631444651,-423.65,0.00023821,30]
[380280063,1755631444725,-400.0,0.00023821,30]
[380280064,1755631444801,-597.08,0.00023821,30]
[380280065,1755631444876,-1474.99,0.00023821,30]
[380280066,1755631444954,-2071.19,0.00023821,30]
[380280067,1755631445032,-400.0,0.00023821,30]
[380280068,1755631445110,-1897.14,0.00023821,30]
[380280069,1755631445188,-1986.02,0.00023821,30]
[380280070,1755631445264,-1857.48,0.00023821,30]
[380280071,1755631445340,-1653.8,0.00023821,30]
[380280072,1755631445417,-400.0,0.00023821,30]
[380280073,1755631445492,-1758.09,0.00023821,30]
[380280074,1755631445564,-1521.0,0.00023821,30]
[380280075,1755631445639,-721.88,0.00023821,30]
[380280076,1755631445711,-312.69,0.00023821,30]
[380280077,1755631445788,-676.72,0.00023821,30]
[380280078,1755631445860,-2274.26,0.00023821,30]
[380280079,1755631445934,-1298.17,0.00023821,30]
[380280080,1755631446005,-400.0,0.00023821,30]
[380280081,1755631446079,-400.0,0.00023821,30]
[380280082,1755631446156,-613.1,0.00023821,30]
[380280083,1755631446235,-695.86,0.00023821,30]
[380280084,1755631446314,-1491.99,0.00023821,30]
[380280085,1755631446394,-1980.26,0.00023821,30]
[380280086,1755631446474,-400.0,0.00023821,30]
[380280087,1755631446558,-400.25,0.00023821,30]
[380280088,1755631446639,-1577.29,0.00023821,30]
[380280089,1755631446713,-400.0,0.00023821,30]
[380280090,1755631446785,-400.0,0.00023821,30]
[380280091,1755631446857,-2002.7,0.00023821,30]
[380280092,1755631446935,-1266.16,0.00023821,30]
[380280093,1755631447011,-1366.49,0.00023821,30]
[380280094,1755631447088,-406.66,0.00023821,30]
[380280095,1755631447166,-508.05,0.00023821,30]
[380280096,1755631447241,-514.56,0.00023821,30]
[380280097,1755631447315,-1776.47,0.00023821,30]
[380280098,1755631447389,-528.92,0.00023821,30]
[380280099,1755631447466,-2414.67,0.00023821,30]
[380280100,1755631447538,-264.3,0.00023821,30]
[380280101,1755631447613,-2527.19,0.00023821,30]
[380280102,1755631447685,-2175.76,0.00023821,30]
[380280103,1755631447761,-2752.59,0.00023821,30]
[380280104,1755631447836,-400.0,0.00023821,30]
[380280105,1755631447908,-588.39,0.00023821,30]
[380280106,1755631447979,-1345.68,0.00023821,30]
[380280107,1755631448051,-824.04,0.00023821,30]
[380280108,1755631448128,-1251.07,0.00023821,30]
[380280109,1755631448207,-369.34,0.00023821,30]
[380280110,1755631448282,-1948.12,0.00023821,30]
[380280111,1755631448356,-400.0,0.00023821,30]
[380280112,1755631448439,-2377.39,0.00023821,30]
[380280113,1755631448518,-2026.03,0.00023821,30]
[380280114,1755631448592,-400.0,0.00023821,30]
[380280115,1755631448665,-2114.04,0.00023821,30]
[380280116,1755631448738,-400.0,0.00023821,30]
[380280117,1755631448810,-244.48887441,0.00023821,30]
[380280118,1755631448883,-849.78,0.00023821,30]
[380280119,1755631448955,-953.13,0.00023821,30]
[380280120,1755631449034,-843.06,0.00023821,30]
[380280121,1755631449106,-728.87,0.00023821,30]
[380280122,1755631449181,-940.93,0.00023821,30]
[380280123,1755631449257,-400.0,0.00023821,30]
[380280124,1755631449331,-1905.5,0.00023821,30]
[380280125,1755631449404,-1596.52,0.00023821,30]
[380280126,1755631449480,-400.0,0.00023821,30]
[380280127,1755631449556,-400.0,0.00023821,30]
[380280128,1755631449631,-902.59,0.00023821,30]
[380280129,1755631449704,-400.0,0.00023821,30]
[380280130,1755631449782,-687.3,0.00023821,30]
[380280131,1755631449866,-308.8741385,0.00023821,30]
[380280132,1755631449966,-2543.56,0.00023821,30]
[380280133,1755631450050,-400.0,0.00023821,30]
[380280134,1755631450125,-609.42,0.00023821,30]
[380280135,1755631450201,-1773.97,0.00023821,30]
[380280136,1755631450277,-1735.8,0.00023821,30]
[380280137,1755631450354,-1297.44,0.00023821,30]
[380280138,1755631450430,-1858.51,0.00023821,30]
[380280139,1755631450509,-805.88,0.00023821,30]
[380280140,1755631450606,-1244.43,0.00023821,30]
[380280141,1755631450718,-1784.43,0.00023821,30]
[380280142,1755631450802,-501.46,0.00023821,30]
[380280143,1755631450879,-1529.76,0.00023821,30]
[380280144,1755631450954,-672.98,0.00023821,30]
[380280145,1755631451031,-600.82,0.00023821,30]
[380280146,1755631451108,-1465.85,0.00023821,30]
[380280147,1755631451190,-1931.93,0.00023821,30]
[380280148,1755631451271,-2147.31,0.00023821,30]
[380280149,1755631451349,-2038.08,0.00023821,30]
[380280150,1755631451426,-1567.3,0.00023821,30]
[380280151,1755631451505,-1367.91,0.00023821,30]
[380280152,1755631451582,-400.0,0.00023821,30]
[380280153,1755631451658,-400.0,0.00023821,30]
[380280154,1755631451732,-400.0,0.00023821,30]
[380280155,1755631451805,-1620.7,0.00023821,30]
[380280156,1755631451881,-2163.3,0.00023821,30]
[380280157,1755631451951,-1692.55,0.00023821,30]
[380280158,1755631452022,-845.95,0.00023821,30]
[380280159,1755631452296,-400.0,0.00023821,30]
[380280160,1755631452369,-400.0,0.00023821,30]
[380280161,1755631452446,-337.88710771,0.00023821,30]
[380280162,1755631452519,-2121.39,0.00023821,30]
[380280163,1755631452604,-1740.78,0.00023821,30]
[380280164,1755631452675,-429.43,0.00023821,30]
[380280165,1755631452745,-1828.54,0.00023821,30]
[380280166,1755631452812,-2012.79,0.00023821,30]
[380280167,1755631452881,-708.39,0.00023821,30]
[380280168,1755631452948,-2499.8,0.00023821,30]
[380280169,1755631453017,-1426.86,0.00023821,30]
[380280170,1755631453083,-664.56,0.00023821,30]
[380280171,1755631453155,-400.0,0.00023821,30]
[380280172,1755631453228,-1463.09,0.00023821,30]
[380280173,1755631453301,-162.96466157,0.00023821,30]
[380280174,1755631453377,-1552.03,0.00023821,30]
[380280175,1755631453451,-1913.73,0.00023821,30]
[380280176,1755631453523,-400.0,0.00023821,30]
[380280177,1755631453594,-2436.61,0.00023821,30]
[380280178,1755631453663,-1392.77,0.00023821,30]
[380280179,1755631453732,-846.92,0.00023821,30]
[380280180,1755631453803,-1000.0,0.00023821,30]
[380280181,1755631453871,-1763.74,0.00023821,30]
[380280182,1755631453945,-400.0,0.00023821,30]
[380280183,1755631454014,-400.0,0.00023821,30]
[380280184,1755631454085,-1099.58,0.00023821,30]
[380280185,1755631454160,-744.5,0.00023821,30]
[380280186,1755631454234,-665.76,0.00023821,30]
[380280187,1755631454304,-400.0,0.00023821,30]
[380280188,1755631454375,-400.0,0.00023821,30]
[380280189,1755631454447,-1281.3,0.00023821,30]
[380280190,1755631454533,-400.0,0.00023821,30]
[380280191,1755631454607,-1252.4,0.00023821,30]
[380280192,1755631454680,-400.0,0.00023821,30]
[380280193,1755631454753,-3616.11,0.00023821,30]
[380280194,1755631454822,-1778.51,0.00023821,30]
[380280195,1755631454892,-407.83,0.00023821,30]
[380280196,1755631454964,-1482.09,0.00023821,30]
[380280197,1755631455036,-1414.83,0.00023821,30]
[380280198,1755631455109,-2032.19,0.00023821,30]
[380280199,1755631455188,-400.0,0.00023821,30]
[380280200,1755631455266,-1578.98,0.00023821,30]
[380280201,1755631455345,-2398.45,0.00023821,30]
[380280202,1755631455426,-766.85,0.00023821,30]
[380280203,1755631455503,-1851.5,0.00023821,30]
[380280204,1755631455582,-1329.85,0.00023821,30]
[380280205,1755631455658,-400.0,0.00023821,30]
[380280206,1755631455738,-1371.61,0.00023821,30]
[380280207,1755631455812,-1402.72,0.00023821,30]
[380280208,1755631455889,-400.0,0.00023821,30]
[380280209,1755631455963,-589.37,0.00023821,30]
[380280210,1755631456045,-1582.32,0.00023821,30]
[380280211,1755631456121,-1558.06,0.00023821,30]
[380280212,1755631456202,-901.56,0.00023821,30]
[380280213,1755631456281,-1663.17,0.00023821,30]
[380280214,1755631456358,-400.0,0.00023821,30]
[380280215,1755631456440,-1613.79,0.00023821,30]
[380280216,1755631456514,-1045.63,0.00023821,30]
[380280217,1755631456589,-749.46,0.00023821,30]
[380280218,1755631456668,-1627.15,0.00023821,30]
[380280219,1755631456744,-313.86579376,0.00023821,30]
[380280220,1755631456823,-609.27,0.00023821,30]
[380280221,1755631456895,-435.18,0.00023821,30]
[380280222,1755631456967,-400.0,0.00023821,30]
[380280223,1755631457040,-4412.02,0.00023821,30]
[380280224,1755631457115,-2089.62,0.00023821,30]
[380280225,1755631457193,-1260.34,0.00023821,30]
[380280226,1755631457271,-1502.06,0.00023821,30]
[380280227,1755631457349,-563.93,0.00023821,30]
[380280228,1755631457428,-6403.8,0.00023821,30]
[380280229,1755631457501,-400.0,0.00023821,30]
[380280230,1755631457581,-1985.34,0.00023821,30]
[380280231,1755631457652,-1048.51,0.00023821,30]
[380280232,1755631457722,-400.0,0.00023821,30]
[380280233,1755631457794,-400.0,0.00023821,30]
[380280234,1755631457864,-1399.36,0.00023821,30]
[380280235,1755631457938,-400.0,0.00023821,30]
[380280236,1755631458012,-400.0,0.00023821,30]
[380280237,1755631458084,-400.0,0.00023821,30]
[380280238,1755631458161,-1781.2,0.00023821,30]
[380280239,1755631458239,-705.16,0.00023821,30]
[380280240,1755631458319,-1262.42,0.00023821,30]
[380280241,1755631458401,-1740.19,0.00023821,30]
[380280242,1755631458482,-681.02,0.00023821,30]
[380280243,1755631458555,-1383.16,0.00023821,30]
[380280244,1755631458631,-847.25,0.00023821,30]
[380280245,1755631458704,-2644.58,0.00023821,30]
[380280246,1755631458779,-400.0,0.00023821,30]
[380280247,1755631458853,-1521.72,0.00023821,30]
[380280248,1755631458929,-408.62,0.00023821,30]
[380280249,1755631459009,-1779.17,0.00023821,30]
[380280250,1755631459088,-2168.42,0.00023821,30]
[380280251,1755631459180,-400.0,0.00023821,30]
[380280252,1755631459262,-1178.75,0.00023821,30]
[380280253,1755631459342,-1810.97,0.00023821,30]
[380280254,1755631459421,-400.0,0.00023821,30]
[380280255,1755631459498,-616.31,0.00023821,30]
[380280256,1755631459572,-437.3,0.00023821,30]
[380280257,1755631459651,-400.0,0.00023821,30]
[380280258,1755631459729,-400.0,0.00023821,30]
[380280259,1755631459803,-1301.26,0.00023821,30]
[380280260,1755631459879,-1396.52,0.00023821,30]
[380280261,1755631459954,-3238.02,0.00023821,30]
[380280262,1755631460028,-1029.85,0.00023821,30]
[380280263,1755631460106,-661.58,0.00023821,30]
[380280264,1755631460181,-900.37,0.00023821,30]
[380280265,1755631460259,-524.58,0.00023821,30]
[380280266,1755631460336,-1367.19,0.00023821,30]
[380280267,1755631460414,-528.92,0.00023821,30]
[380280268,1755631460489,-400.0,0.00023821,30]
[380280269,1755631460565,-1736.94,0.00023821,30]
[380280270,1755631460641,-1444.28,0.00023821,30]
[380280271,1755631460718,-438.54,0.00023821,30]
[380280272,1755631460793,-2052.18,0.00023821,30]
[380280273,1755631460868,-1214.14,0.00023821,30]
[380280274,1755631461343,-1257.53,0.00023821,30]
[380280275,1755631461421,-400.0,0.00023821,30]
[380280276,1755631461498,-400.0,0.00023821,30]
[380280277,1755631461578,-400.0,0.00023821,30]
[380280278,1755631461663,-809.42,0.00023821,30]
[380280279,1755631461745,-617.46,0.00023821,30]
[380280280,1755631461822,-1942.42,0.00023821,30]
[380280281,1755631461900,-1699.43,0.00023821,30]
[380280282,1755631461983,-1369.92,0.00023821,30]
[380280283,1755631462060,-400.0,0.00023821,30]
[380280284,1755631462138,-1393.2,0.00023821,30]
[380280285,1755631462221,-2169.5,0.00023821,30]
[380280286,1755631462303,-400.0,0.00023821,30]
[380280287,1755631462383,-823.8,0.00023821,30]
[380280288,1755631462463,-400.0,0.00023821,30]
[380280289,1755631462540,-400.0,0.00023821,30]
[380280290,1755631462625,-1784.2,0.00023821,30]
[380280291,1755631462705,-550.99,0.00023821,30]
[380280292,1755631462786,-1565.79,0.00023821,30]
[380280293,1755631462865,-1416.58,0.00023821,30]
[380280294,1755631462946,-1403.3,0.00023821,30]
[380280295,1755631463026,-642.58,0.00023821,30]
[380280296,1755631463105,-2128.32,0.00023821,30]
[380280297,1755631463186,-8918.63,0.00023821,30]
[380280298,1755631463264,-7432.2,0.00023821,30]
[380280299,1755631463342,-1992.46,0.00023821,30]
[380280300,1755631463430,-776.51,0.00023821,30]
[380280301,1755631463529,-400.0,0.00023821,30]
[380280302,1755631463626,-646.11,0.00023821,30]
[380280303,1755631463719,-942.07,0.00023821,30]
[380280304,1755631463796,-1398.76,0.00023821,30]
[380280305,1755631463874,-1374.85,0.00023821,30]
[380280306,1755631463952,-622.04,0.00023821,30]
[380280307,1755631464026,-1438.62,0.00023821,30]
[380280308,1755631464102,-400.0,0.00023821,30]
[380280309,1755631464178,-400.0,0.00023821,30]
[380280310,1755631464254,-400.0,0.00023821,30]
[380280311,1755631464329,-1757.25,0.00023821,30]
[380280312,1755631464404,-436.45,0.00023821,30]
[380280313,1755631464480,-1258.08,0.00023821,30]
[380280314,1755631464553,-1464.38,0.00023821,30]
[380280315,1755631464633,-1449.63,0.00024095,30]
[380280316,1755631464709,-1569.5,0.00024095,30]
[380280317,1755631464784,-2257.43,0.00024095,30]
[380280318,1755631464858,-400.0,0.00024095,30]
[380280319,1755631464934,-400.0,0.00024095,30]
[380280320,1755631465009,-400.0,0.00024095,30]
[380280321,1755631465087,-1571.79,0.00024095,30]